bitfinex/quotes_BTCUSD_20251011
["timestamp","ask_amount","ask_price","bid_price","bid_amount"]
[1760177341445,0.48880308,111950.0,111940.0,1e-08]
[1760177341646,0.51380307,111950.0,111940.0,1e-08]
[1760177342072,0.53301412,111950.0,111940.0,1e-08]
[1760177342272,0.54968897,111950.0,111940.0,1e-08]
[1760177342904,0.55068897,111950.0,111940.0,1e-08]
[1760177343071,0.65068896,111950.0,111940.0,1e-08]
[1760177344060,0.64968896,111950.0,111940.0,1e-08]
[1760177344531,0.62668897,111950.0,111940.0,1e-08]
[1760177344739,0.55168897,111950.0,111940.0,1e-08]
[1760177344952,0.65168896,111950.0,111940.0,1e-08]
[1760177345391,0.65368896,111950.0,111940.0,1e-08]
[1760177347169,0.18353707,111950.0,111940.0,1e-08]
[1760177347423,0.13932603,111950.0,111940.0,1e-08]
[1760177347621,0.12265118,111950.0,111940.0,0.04992001]
[1760177347825,0.15280308,111950.0,111940.0,0.04992001]
[1760177347957,0.12265118,111950.0,111940.0,0.08540001]
[1760177348190,0.46065118,111950.0,111940.0,1e-08]
[1760177348387,0.50286222,111950.0,111940.0,1e-08]
[1760177348591,0.53401412,111950.0,111940.0,1e-08]
[1760177348833,0.53501412,111950.0,111940.0,1e-08]
[1760177349571,0.53401412,111950.0,111940.0,1e-08]
[1760177349822,0.55071314,111950.0,111940.0,1e-08]
[1760177350451,0.55171314,111950.0,111940.0,1e-08]
[1760177351870,0.68378638,111950.0,111940.0,1e-08]
[1760177352900,0.73189626,111950.0,111940.0,1e-08]
[1760177353563,0.58378639,111950.0,111940.0,1e-08]
[1760177353770,0.52156124,111950.0,111940.0,1e-08]
[1760177353910,0.18156124,111950.0,111940.0,1e-08]
[1760177354114,0.12065118,111950.0,111940.0,0.04992001]
[1760177354553,0.12065118,111950.0,111940.0,0.08540001]
[1760177354790,0.12065118,111950.0,111940.0,1e-08]
[1760177355207,0.11965118,111950.0,111940.0,1e-08]
[1760177356232,0.45865118,111950.0,111940.0,1e-08]
[1760177356388,0.45865118,111950.0,111940.0,0.08540001]
[1760177356602,0.45865118,111950.0,111940.0,1e-08]
[1760177357660,0.51380307,111950.0,111940.0,1e-08]
[1760177358423,0.45865118,111950.0,111940.0,0.04992001]
[1760177358623,0.45865118,111950.0,111940.0,0.08540001]
[1760177359540,0.11865118,111950.0,111940.0,0.08540001]
[1760177359727,0.11865118,111950.0,111940.0,0.15571001]
[1760177360878,0.17863522,111960.0,111940.0,0.15571001]
[1760177361086,0.17863522,111960.0,111950.0,0.10579]
[1760177361257,0.17863522,111960.0,111950.0,0.15571]
[1760177361459,0.17863522,111960.0,111950.0,0.15610909]
[1760177362081,0.17863522,111960.0,111950.0,0.15697009]
[1760177362286,0.17863522,111960.0,111950.0,0.25696458]
[1760177362494,0.17863522,111960.0,111950.0,0.25570449]
[1760177363467,0.17952813,112000.0,111970.0,0.17861437]
[1760177363674,0.17952813,112000.0,111990.0,0.0854]
[1760177363920,0.17952813,112000.0,111990.0,0.15571]
[1760177364940,0.18052813,112000.0,111990.0,0.15571]
[1760177365384,0.17952813,112000.0,111990.0,0.15571]
[1760177365966,0.18052813,112000.0,111990.0,0.15571]
[1760177366146,0.17952813,112000.0,111990.0,0.15571]
[1760177366849,0.18052813,112000.0,111990.0,0.15571]
[1760177367352,0.17952813,112000.0,111990.0,0.0854]
[1760177367573,0.17952813,112000.0,111990.0,0.15433]
[1760177368880,0.17952813,112000.0,111990.0,0.0854]
[1760177369212,0.17858737,111990.0,111980.0,0.03548]
[1760177369340,0.17858737,111990.0,111980.0,0.15135]
[1760177369797,0.17858737,111990.0,111980.0,0.25134449]
[1760177370394,0.17858737,111990.0,111980.0,0.35234444]
[1760177370590,0.17858737,111990.0,111980.0,0.08342]
[1760177371019,0.17858737,111990.0,111980.0,0.15235]
[1760177371266,0.17858737,111990.0,111980.0,0.08342]
[1760177371418,0.17858737,111990.0,111980.0,0.15135]
[1760177371818,0.17858737,111990.0,111980.0,0.08242]
[1760177372835,0.17858737,111990.0,111980.0,0.15135]
[1760177374669,0.18186849,111990.0,111980.0,0.15135]
[1760177381130,0.18186849,111990.0,111980.0,0.08242]
[1760177381358,0.18186849,111990.0,111980.0,0.0806]
[1760177381844,0.18186849,111990.0,111980.0,0.14885]
[1760177382049,0.18186849,111990.0,111980.0,0.0806]
[1760177382393,0.17860332,111980.0,111970.0,0.03548]
[1760177382599,0.17860332,111980.0,111960.0,0.03548]
[1760177382600,0.17861927,111970.0,111960.0,0.03548]
[1760177382798,0.17861927,111970.0,111960.0,0.14885]
[1760177390657,0.17861927,111970.0,111960.0,0.0806]
[1760177390862,0.17861927,111970.0,111960.0,0.14885]
[1760177391062,0.18073867,111970.0,111960.0,0.14885]
[1760177392171,0.0021194,111970.0,111960.0,0.32748522]
[1760177392791,0.0021194,111970.0,111960.0,0.66748522]
[1760177393195,0.0021194,111970.0,111960.0,0.76747971]
[1760177393695,0.0021194,111970.0,111960.0,0.86747966]
[1760177394889,0.0021194,111970.0,111960.0,0.89763156]
[1760177395327,0.0021194,111970.0,111960.0,0.89863156]
[1760177395532,0.0021194,111970.0,111960.0,1.29963156]
[1760177395716,0.0021194,111970.0,111960.0,1.39863155]
[1760177395956,0.0021194,111970.0,111960.0,1.36482853]
[1760177396167,0.0021194,111970.0,111960.0,1.46582852]
[1760177396322,0.0021194,111970.0,111960.0,1.46482852]
[1760177396527,0.0021194,111970.0,111960.0,1.46582852]
[1760177396963,0.0021194,111970.0,111960.0,1.36582853]
[1760177397302,0.0021194,111970.0,111960.0,1.46582852]
[1760177397721,0.0021194,111970.0,111960.0,1.46482852]
[1760177397897,0.0021194,111970.0,111960.0,1.46582852]
[1760177398352,0.17858868,111990.0,111980.0,0.51860332]
[1760177398550,0.17858868,111990.0,111980.0,0.37405]
[1760177398779,0.17858868,111990.0,111980.0,0.49027]
[1760177399187,0.17858868,111990.0,111980.0,0.25026449]
[1760177399483,0.17858868,111990.0,111980.0,0.15027]
[1760177399654,0.17858868,111990.0,111980.0,0.15127]
[1760177400775,0.17858868,111990.0,111980.0,0.15027]
[1760177400975,0.17858868,111990.0,111980.0,0.15598247]
[1760177401179,0.1367824,112000.0,111980.0,0.42887327]
[1760177401405,0.17858737,111990.0,111980.0,0.18085995]
[1760177401769,0.17858737,111990.0,111980.0,0.28085444]
[1760177401979,0.17858737,111990.0,111980.0,0.35026444]
[1760177402888,0.17858737,111990.0,111980.0,0.35126444]
[1760177403340,0.17858737,111990.0,111980.0,0.15127]
[1760177403710,0.17867753,111990.0,111980.0,0.15127]
[1760177403923,0.17983944,111990.0,111980.0,0.15027]
[1760177404308,0.00125207,111990.0,111980.0,0.32887332]
[1760177404509,0.00125207,111990.0,111980.0,0.42886781]
[1760177404912,0.00125207,111990.0,111980.0,0.52886776]
[1760177405113,0.00125207,111990.0,111980.0,0.52986776]
[1760177405325,0.17983944,111990.0,111980.0,0.52986776]
[1760177406093,0.00125207,111990.0,111980.0,0.52986776]
[1760177406679,0.00125207,111990.0,111980.0,0.56001966]
[1760177407272,0.00125207,111990.0,111980.0,0.90001966]
[1760177407662,0.00125207,111990.0,111980.0,1.08954917]
[1760177409002,0.00125207,111990.0,111980.0,1.08854917]
[1760177409637,0.00125207,111990.0,111980.0,1.08954917]
[1760177410282,0.00125207,111990.0,111980.0,1.48954917]
[1760177410487,0.00125207,111990.0,111980.0,1.51740202]
[1760177412984,0.00125207,111990.0,111980.0,1.54240201]
[1760177413384,0.00125207,111990.0,111980.0,1.62242524]
[1760177414167,0.00125207,111990.0,111980.0,1.62142524]
[1760177414374,0.00125207,111990.0,111980.0,1.62042524]
[1760177414597,0.00125207,111990.0,111980.0,1.62242524]
[1760177414762,0.00125207,111990.0,111980.0,1.62342524]
[1760177415136,0.00125207,111990.0,111980.0,1.54340201]
[1760177415366,0.00125207,111990.0,111980.0,1.62312906]
[1760177416171,0.00125207,111990.0,111980.0,6.67312906]
[1760177417156,0.00125207,111990.0,111980.0,6.6183728]
[1760177417452,0.00125207,111990.0,111980.0,6.59340201]
[1760177418069,0.00125207,111990.0,111980.0,6.59040201]
[1760177418267,0.00125207,111990.0,111980.0,6.59240201]
[1760177418473,0.00125207,111990.0,111980.0,6.59440201]
[1760177419653,1e-08,111990.0,111980.0,6.59440201]
[1760177419991,1e-08,111990.0,111980.0,6.73140532]
[1760177420156,1e-08,111990.0,111980.0,6.83140531]
[1760177420711,1e-08,111990.0,111980.0,6.71937279]
[1760177421093,0.07162362,112040.0,112030.0,0.5486755]
[1760177421292,0.07171388,112040.0,112030.0,0.67225502]
[1760177421492,9.026e-05,112040.0,112030.0,1.18847502]
[1760177421727,9.026e-05,112040.0,112030.0,1.28846951]
[1760177421946,0.00299347,112040.0,112030.0,1.31530987]
[1760177422354,0.00299347,112040.0,112030.0,1.07530982]
[1760177422982,0.00299347,112040.0,112030.0,1.14257774]
[1760177423764,0.00299347,112040.0,112030.0,1.14172508]
[1760177428593,0.00299347,112040.0,112030.0,0.62204366]
[1760177428984,0.18150114,112040.0,112030.0,0.5952033]
[1760177429213,0.18150114,112040.0,112030.0,0.6253552]
[1760177429418,0.18150114,112040.0,112030.0,0.5952033]
[1760177429771,0.18150114,112040.0,112030.0,0.35026444]
[1760177430112,0.18150114,112040.0,112030.0,0.52878804]
[1760177430597,0.00299347,112040.0,112030.0,0.52878804]
[1760177432347,0.00299347,112040.0,112030.0,0.62595324]
[1760177433778,0.00299347,112040.0,112030.0,1.02595324]
[1760177434194,0.00299347,112040.0,112030.0,0.62595324]
[1760177437529,0.00299347,112040.0,112030.0,0.65279643]
[1760177437964,0.00299347,112040.0,112030.0,0.74232595]
[1760177438081,0.00299347,112040.0,112030.0,1.14232595]
[1760177439790,0.00299347,112040.0,112030.0,1.48232595]
[1760177441056,0.00299347,112040.0,112030.0,1.50732594]
[1760177441476,0.00299347,112040.0,112030.0,6.65732593]
[1760177441690,0.00299347,112040.0,112030.0,6.76195437]
[1760177441893,0.00299347,112040.0,112030.0,6.79381743]
[1760177442958,0.00299347,112040.0,112030.0,6.76884664]
[1760177443285,1e-08,112040.0,112030.0,6.89381742]
[1760177443507,0.0002,112070.0,112060.0,0.33362769]
[1760177443728,0.00070526,112070.0,112060.0,0.45964721]
[1760177443930,0.00070526,112070.0,112060.0,0.97544721]
[1760177444146,0.00070526,112070.0,112060.0,1.0754417]
[1760177444358,0.00070526,112070.0,112060.0,1.07901909]
[1760177444775,0.00070526,112070.0,112060.0,1.17901904]
[1760177445333,0.00070526,112070.0,112060.0,6.63283935]
[1760177445558,0.00070526,112070.0,112060.0,6.64887009]
[1760177446619,0.00070526,112070.0,112060.0,6.64987009]
[1760177447485,0.00070526,112070.0,112060.0,6.64887009]
[1760177447643,0.00070526,112070.0,112060.0,6.64987009]
[1760177448273,0.00070526,112070.0,112060.0,6.65087009]
[1760177449058,0.00244634,112070.0,112060.0,6.65087009]
[1760177449701,0.00198674,112070.0,112060.0,6.65087009]
[1760177451204,0.00198674,112070.0,112060.0,1.4707182]
[1760177451394,0.00198674,112070.0,112060.0,1.49086714]
[1760177451587,0.00198674,112070.0,112060.0,1.52101904]
[1760177451955,0.00198674,112070.0,112060.0,1.58468254]
[1760177452458,0.00198674,112070.0,112060.0,1.48468255]
[1760177452788,0.00198674,112070.0,112060.0,1.58468254]
[1760177454053,0.00198674,112070.0,112060.0,1.55968255]
[1760177454276,0.00198674,112070.0,112060.0,1.45968256]
[1760177454499,0.00198674,112070.0,112060.0,1.55968255]
[1760177455249,0.00198674,112070.0,112060.0,1.49601905]
[1760177455452,0.00198674,112070.0,112060.0,1.55968255]
[1760177455653,0.00198674,112070.0,112060.0,1.58468254]
[1760177459553,0.00198674,112070.0,112060.0,1.55968255]
[1760177459716,0.00198674,112070.0,112060.0,1.58468254]
[1760177463792,0.00198674,112070.0,112060.0,6.63468254]
[1760177464136,0.00198674,112070.0,112060.0,6.57101904]
[1760177465341,0.00198674,112070.0,112060.0,6.65087009]
[1760177466027,0.00198674,112070.0,112060.0,6.67584088]
[1760177466212,0.00036645,112070.0,112060.0,6.59598983]
[1760177466422,0.00036645,112070.0,112060.0,6.7077813]
[1760177466624,0.0002,112080.0,112070.0,0.30345987]
[1760177466788,0.0002,112090.0,112080.0,0.67359584]
[1760177467032,0.0002,112090.0,112080.0,5.98960615]
[1760177467232,0.0002,112090.0,112080.0,6.50139762]
[1760177467417,0.0002,112090.0,112080.0,6.57999777]
[1760177467986,0.0002,112090.0,112080.0,6.67999772]
[1760177468197,0.0002,112090.0,112080.0,6.68099772]
[1760177468408,0.0002,112090.0,112080.0,6.54420626]
[1760177468603,0.0002,112090.0,112080.0,1.47392537]
[1760177468894,0.0002,112090.0,112080.0,1.57392536]
[1760177469388,0.0002,112090.0,112080.0,1.64084179]
[1760177470372,0.17908208,112130.0,112110.0,0.17839621]
[1760177470373,0.17683671,112130.0,112110.0,0.17839621]
[1760177470576,0.17683671,112130.0,112110.0,0.21291621]
[1760177470577,0.17838232,112120.0,112110.0,0.21291621]
[1760177470755,0.17698817,112130.0,112120.0,0.07909]
[1760177471143,0.00015146,112130.0,112120.0,0.33852221]
[1760177471341,0.17851585,112130.0,112120.0,0.15151]
[1760177472645,0.17851585,112130.0,112120.0,0.21755225]
[1760177473040,0.00363128,112130.0,112120.0,0.39593255]
[1760177473247,0.00363128,112130.0,112120.0,0.42608445]
[1760177473451,0.88110532,112160.0,112140.0,0.17834849]
[1760177473786,0.17840532,112160.0,112150.0,0.16019946]
[1760177474188,0.51840532,112160.0,112150.0,0.16019946]
[1760177474982,0.18723252,112160.0,112150.0,0.33853205]
[1760177475183,0.18723252,112160.0,112150.0,0.32984259]
[1760177476241,0.17853764,112180.0,112150.0,0.39713224]
[1760177476420,0.17830538,112170.0,112160.0,0.11944947]
[1760177476616,0.17830538,112170.0,112160.0,0.16401947]
[1760177477052,0.17868907,112180.0,112160.0,0.34233616]
[1760177477214,0.17868907,112180.0,112160.0,0.07909]
[1760177477441,0.17868907,112180.0,112170.0,0.03452]
[1760177477767,0.17868907,112180.0,112170.0,0.15151]
[1760177479447,0.17868907,112180.0,112170.0,0.15944003]
[1760177479656,0.51868907,112180.0,112170.0,0.15944003]
[1760177480072,0.51863632,112180.0,112170.0,0.15151]
[1760177480682,0.17863632,112180.0,112170.0,0.15151]
[1760177480931,0.00035143,112180.0,112170.0,0.33692209]
[1760177481112,0.00035143,112180.0,112170.0,0.32981079]
[1760177482780,0.00035143,112180.0,112170.0,0.35996269]
[1760177484035,0.00324922,112180.0,112170.0,0.35996269]
[1760177484640,0.00324922,112180.0,112170.0,0.75996269]
[1760177486819,0.00324922,112180.0,112170.0,0.84949221]
[1760177487229,0.18715068,112210.0,112190.0,0.17826051]
[1760177487391,0.17825311,112200.0,112190.0,0.0658419]
[1760177487585,0.17825311,112200.0,112190.0,0.260249]
[1760177488063,0.17825311,112200.0,112190.0,0.329419]
[1760177488479,0.17825311,112200.0,112190.0,0.15115]
[1760177488682,0.17825311,112200.0,112190.0,0.329419]
[1760177488874,0.17825311,112200.0,112190.0,0.15115]
[1760177489077,0.17825311,112200.0,112190.0,0.329419]
[1760177489602,0.18765535,112210.0,112190.0,0.329419]
[1760177489820,0.18765535,112210.0,112200.0,0.10486]
[1760177490183,0.1787419,112210.0,112200.0,0.3298714]
[1760177490378,0.1787419,112210.0,112200.0,0.32940311]
[1760177490765,0.00050467,112210.0,112200.0,0.32940311]
[1760177490997,0.1787419,112210.0,112200.0,0.32940311]
[1760177491266,0.1787419,112210.0,112200.0,0.35955501]
[1760177491392,0.00050467,112210.0,112200.0,0.35955501]
[1760177491591,0.1787419,112210.0,112200.0,0.35955501]
[1760177491830,0.1787419,112210.0,112200.0,0.42735661]
[1760177492096,0.00050467,112210.0,112200.0,0.42735661]
[1760177492567,0.1787419,112210.0,112200.0,0.42735661]
[1760177492735,0.00050467,112210.0,112200.0,0.42735661]
[1760177492938,0.1787419,112210.0,112200.0,0.42735661]
[1760177493295,0.00050467,112210.0,112200.0,0.42735661]
[1760177495204,0.1787419,112210.0,112200.0,0.42735661]
[1760177495404,0.1787419,112210.0,112200.0,0.82735661]
[1760177497309,0.00050467,112210.0,112200.0,0.82735661]
[1760177497426,0.1787419,112210.0,112200.0,0.82735661]
[1760177498280,0.18047972,112210.0,112200.0,0.82735661]
[1760177501839,0.00224249,112210.0,112200.0,0.82735661]
[1760177502074,0.18047972,112210.0,112200.0,0.82735661]
[1760177502863,0.00224249,112210.0,112200.0,0.82735661]
[1760177503153,0.18047972,112210.0,112200.0,0.82735661]
[1760177503756,0.00224249,112210.0,112200.0,0.82735661]
[1760177505380,0.18047972,112210.0,112200.0,0.6491035]
[1760177505584,0.18047972,112210.0,112200.0,0.82735661]
[1760177505791,0.18047972,112210.0,112200.0,0.6491035]
[1760177506045,0.18047972,112210.0,112200.0,0.82735661]
[1760177506458,0.18047972,112210.0,112200.0,0.6491035]
[1760177506682,0.18047972,112210.0,112200.0,0.15115]
[1760177507106,0.22645972,112210.0,112200.0,0.08198]
[1760177507976,0.17825311,112200.0,112180.0,0.10598]
[1760177508182,0.178269,112190.0,112180.0,0.10598]
[1760177508394,0.17884837,112190.0,112180.0,0.15364]
[1760177510749,0.17828489,112180.0,112170.0,0.03547476]
[1760177510922,0.17828489,112180.0,112170.0,0.15342476]
[1760177511711,0.25393489,112180.0,112170.0,0.08313476]
[1760177512084,0.20795489,112180.0,112170.0,0.15342476]
[1760177512286,0.59393489,112180.0,112170.0,0.08313476]
[1760177514706,0.54795489,112180.0,112170.0,0.15342476]
[1760177515285,0.51828489,112180.0,112170.0,0.15342476]
[1760177516353,0.51828489,112180.0,112170.0,0.1603688]
[1760177516687,0.17828489,112180.0,112170.0,0.3390242]
[1760177516954,0.17828489,112180.0,112170.0,0.15342476]
[1760177518607,0.17828489,112180.0,112170.0,0.15507577]
[1760177518819,0.17884837,112190.0,112170.0,0.34012937]
[1760177519025,0.17884837,112190.0,112180.0,0.10126]
[1760177519457,0.17884837,112190.0,112180.0,0.14528]
[1760177520165,0.17884837,112190.0,112180.0,0.15365664]
[1760177520342,0.17984837,112190.0,112180.0,0.15365664]
[1760177520540,0.00157937,112190.0,112180.0,0.33194153]
[1760177520719,0.17984837,112190.0,112180.0,0.14528]
[1760177524396,0.22535837,112190.0,112180.0,0.07618]
[1760177524630,0.17984837,112190.0,112180.0,0.07618]
[1760177524971,0.00157937,112190.0,112180.0,0.32356489]
[1760177525296,0.00157937,112190.0,112180.0,0.35371679]
[1760177525736,0.17984837,112190.0,112180.0,0.1754319]
[1760177525939,0.17984837,112190.0,112180.0,0.35371679]
[1760177526338,7.937e-05,112190.0,112180.0,0.35371679]
[1760177526541,0.17834837,112190.0,112180.0,0.35371679]
[1760177526855,0.17825435,112200.0,112180.0,0.35371679]
[1760177527081,0.17825435,112200.0,112190.0,0.10126]
[1760177527459,0.17825435,112200.0,112190.0,0.14528]
[1760177527673,0.17883365,112200.0,112190.0,0.14528]
[1760177533098,0.17883365,112200.0,112190.0,0.07618]
[1760177533099,0.22434365,112200.0,112190.0,0.07618]
[1760177533925,0.178269,112190.0,112180.0,0.10221464]
[1760177534327,0.178269,112190.0,112180.0,0.14623464]
[1760177534455,0.252339,112190.0,112180.0,0.07713464]
[1760177534657,0.206829,112190.0,112180.0,0.14623464]
[1760177535340,0.178269,112190.0,112180.0,0.14623464]
[1760177538076,0.178269,112190.0,112180.0,0.07713464]
[1760177538220,0.252339,112190.0,112180.0,0.07713464]
[1760177539048,0.310979,112190.0,112180.0,0.00095464]
[1760177539748,0.206829,112190.0,112180.0,0.14623464]
[1760177539952,0.178269,112190.0,112180.0,0.14623464]
[1760177540479,0.518269,112190.0,112180.0,0.14623464]
[1760177541056,0.518269,112190.0,112180.0,0.15312823]
[1760177541784,0.518269,112190.0,112180.0,0.15666941]
[1760177541958,0.518269,112190.0,112180.0,0.14623464]
[1760177543334,0.32592871,112190.0,112180.0,0.14623464]
[1760177543642,0.50419771,112190.0,112180.0,0.14623464]
[1760177545983,0.17883365,112200.0,112180.0,0.3334825]
[1760177546196,0.51883365,112200.0,112190.0,0.10126]
[1760177546451,0.17883365,112200.0,112190.0,0.323569]
[1760177546654,0.17883365,112200.0,112190.0,0.24529449]
[1760177547233,0.17883365,112200.0,112190.0,0.34529444]
[1760177550766,0.17883365,112200.0,112190.0,0.34543663]
[1760177551592,0.56490365,112200.0,112190.0,0.07634219]
[1760177552188,0.56490365,112200.0,112190.0,0.03230219]
[1760177552517,0.51883365,112200.0,112190.0,0.07634219]
[1760177552670,0.51883365,112200.0,112190.0,0.14217219]
[1760177553613,0.56490365,112200.0,112190.0,0.07634219]
[1760177554849,0.56490365,112200.0,112190.0,0.07633219]
[1760177554989,0.51883365,112200.0,112190.0,0.14216219]
[1760177555184,0.56490365,112200.0,112190.0,0.07633219]
[1760177556017,0.56490365,112200.0,112190.0,0.00014219]
[1760177556018,0.62119365,112200.0,112190.0,0.00014219]
[1760177556925,0.56490365,112200.0,112190.0,0.00014219]
[1760177557118,0.51883365,112200.0,112190.0,0.14216219]
[1760177558368,0.56490365,112200.0,112190.0,0.00014219]
[1760177558751,0.56490365,112200.0,112190.0,0.07633219]
[1760177558955,0.51883365,112200.0,112190.0,0.07633219]
[1760177559533,0.51883365,112200.0,112190.0,0.14216219]
[1760177560925,0.56335365,112200.0,112190.0,0.07633219]
[1760177561112,0.56335365,112200.0,112190.0,0.00014219]
[1760177561462,0.61913365,112200.0,112190.0,0.00014219]
[1760177562123,0.56335365,112200.0,112190.0,0.07823219]
[1760177562746,0.56335365,112200.0,112190.0,0.00014219]
[1760177563150,0.61913365,112200.0,112190.0,0.00014219]
[1760177565170,0.64595059,112200.0,112190.0,0.00014219]
[1760177571861,0.59017059,112200.0,112190.0,0.04412219]
[1760177572073,0.59017059,112200.0,112190.0,0.00014219]
[1760177572283,0.59017059,112200.0,112190.0,0.07823219]
[1760177572896,0.59017059,112200.0,112190.0,0.00014219]
[1760177573101,0.64595059,112200.0,112190.0,0.00014219]
[1760177573919,0.59017059,112200.0,112190.0,0.07823219]
[1760177574155,0.54565059,112200.0,112190.0,0.14120219]
[1760177574426,0.64486059,112200.0,112190.0,0.00014219]
[1760177576726,0.59017059,112200.0,112190.0,0.00014219]
[1760177576937,0.59017059,112200.0,112190.0,0.04526219]
[1760177577349,0.59017059,112200.0,112190.0,0.00014219]
[1760177577761,0.64486059,112200.0,112190.0,0.00014219]
[1760177580566,0.59017059,112200.0,112190.0,0.04526219]
[1760177581349,0.59017059,112200.0,112190.0,0.07711219]
[1760177581558,0.64486059,112200.0,112190.0,0.00014219]
[1760177582737,0.59017059,112200.0,112190.0,0.00014219]
[1760177583867,0.64486059,112200.0,112190.0,0.00014219]
[1760177586053,0.59017059,112200.0,112190.0,0.04526219]
[1760177586890,0.59017059,112200.0,112190.0,0.07711219]
[1760177587267,0.54565059,112200.0,112190.0,0.07711219]
[1760177587461,0.58868059,112200.0,112190.0,0.07711219]
[1760177588575,0.64337059,112200.0,112190.0,0.00014219]
[1760177592255,0.64337059,112200.0,112190.0,0.04526219]
[1760177592256,0.58868059,112200.0,112190.0,0.04526219]
[1760177592454,0.58868059,112200.0,112190.0,0.00014219]
[1760177592612,0.58868059,112200.0,112190.0,0.07711219]
[1760177592821,0.54565059,112200.0,112190.0,0.14250219]
[1760177593022,0.64337059,112200.0,112190.0,0.00014219]
[1760177601449,0.58868059,112200.0,112190.0,0.04526219]
[1760177601628,0.58868059,112200.0,112190.0,0.00014219]
[1760177602036,0.58868059,112200.0,112190.0,0.04526219]
[1760177602223,0.58868059,112200.0,112190.0,0.00014219]
[1760177602619,0.58868059,112200.0,112190.0,0.07711219]
[1760177602822,0.58868059,112200.0,112190.0,0.03199219]
[1760177603024,0.64337059,112200.0,112190.0,0.00014219]
[1760177606575,0.58868059,112200.0,112190.0,0.04446219]
[1760177608408,0.34634084,112200.0,112190.0,0.00014219]
[1760177608601,0.57699519,112200.0,112190.0,0.00014219]
[1760177609695,0.52459519,112200.0,112190.0,0.00014219]
[1760177611054,0.57699519,112200.0,112190.0,0.00014219]
[1760177611654,0.52459519,112200.0,112190.0,0.00014219]
[1760177611960,0.52459519,112200.0,112190.0,0.04446219]
[1760177612402,0.52459519,112200.0,112190.0,0.07844219]
[1760177613918,0.52459519,112200.0,112190.0,0.00014219]
[1760177614567,0.52459519,112200.0,112190.0,0.04446219]
[1760177615191,0.52459519,112200.0,112190.0,0.00014219]
[1760177616919,0.57699519,112200.0,112190.0,0.00014219]
[1760177617821,0.52459519,112200.0,112190.0,0.07844219]
[1760177617961,0.52459519,112200.0,112190.0,0.00014219]
[1760177618162,0.52459519,112200.0,112190.0,0.07844219]
[1760177618574,0.52459519,112200.0,112190.0,0.00014219]
[1760177618778,0.57699519,112200.0,112190.0,0.00014219]
[1760177623060,0.57699519,112200.0,112190.0,0.00028438]
[1760177623235,0.57695519,112200.0,112190.0,0.00028438]
[1760177623927,0.57671901,112200.0,112190.0,0.00028438]
[1760177639767,0.52431901,112200.0,112190.0,0.00028438]
[1760177640145,0.57538901,112200.0,112190.0,0.00028438]
[1760177642613,0.6305409,112200.0,112190.0,1e-08]
[1760177650839,0.60554091,112200.0,112190.0,1e-08]
[1760177650983,0.6305409,112200.0,112190.0,1e-08]
[1760177654694,0.57538901,112200.0,112190.0,1e-08]
[1760177655699,0.52431901,112200.0,112190.0,1e-08]
[1760177656121,0.57538901,112200.0,112190.0,1e-08]
[1760177659810,0.52431901,112200.0,112190.0,0.04193001]
[1760177660012,0.52431901,112200.0,112190.0,0.07546001]
[1760177660404,0.52431901,112200.0,112190.0,0.13792001]
[1760177661350,0.52431901,112200.0,112190.0,0.07546001]
[1760177663976,0.52431901,112200.0,112190.0,0.03353001]
[1760177664143,0.57315901,112200.0,112190.0,1e-08]
[1760177665124,0.52431901,112200.0,112190.0,0.04193001]
[1760177666368,0.52431901,112200.0,112190.0,0.14087001]
[1760177666570,0.52431901,112200.0,112190.0,0.07452001]
[1760177666957,0.48128901,112200.0,112190.0,0.07452001]
[1760177667158,0.52280901,112200.0,112190.0,0.07452001]
[1760177668099,0.48128901,112200.0,112190.0,0.14087001]
[1760177668826,0.52280901,112200.0,112190.0,0.07452001]
[1760177670317,0.48128901,112200.0,112190.0,0.07452001]
[1760177670489,0.48128901,112200.0,112190.0,0.14087001]
[1760177671111,0.52280901,112200.0,112190.0,0.14087001]
[1760177671346,0.52280901,112200.0,112190.0,0.07452001]
[1760177673835,0.52280901,112200.0,112190.0,1e-08]
[1760177674039,0.57164901,112200.0,112190.0,1e-08]
[1760177677848,0.60180091,112200.0,112190.0,1e-08]
[1760177680064,0.6268009,112200.0,112190.0,1e-08]
[1760177683208,0.64350657,112200.0,112190.0,1e-08]
[1760177684445,0.65748229,112200.0,112190.0,1e-08]
[1760177684819,0.23342089,112190.0,112180.0,1e-08]
[1760177685020,0.25335089,112190.0,112180.0,1e-08]
[1760177685221,0.69842788,112190.0,112180.0,1e-08]
[1760177685593,0.72525545,112190.0,112180.0,1e-08]
[1760177685988,0.7444936,112190.0,112180.0,1e-08]
[1760177686186,0.17834849,112140.0,112130.0,0.07162362]
[1760177686383,0.29055849,112140.0,112130.0,0.07162362]
[1760177686843,0.31738915,112140.0,112130.0,0.1750961]
[1760177687048,0.31738915,112140.0,112130.0,0.10347248]
[1760177687457,0.31752399,112140.0,112130.0,0.20347243]
[1760177688260,0.26986399,112140.0,112130.0,0.20347243]
[1760177688802,0.26986399,112140.0,112130.0,0.00347799]
[1760177689006,0.31752399,112140.0,112130.0,0.00347799]
[1760177689529,0.26986399,112140.0,112130.0,0.00347799]
[1760177690324,0.31752399,112140.0,112130.0,0.00347799]
[1760177691189,0.22914399,112140.0,112130.0,0.14190799]
[1760177691401,0.20531399,112140.0,112130.0,0.14190799]
[1760177693580,1.20531399,112140.0,112130.0,0.14190799]
[1760177694067,1.20531399,112140.0,112130.0,0.14989991]
[1760177694068,1.17848333,112140.0,112130.0,0.14989991]
[1760177694908,1.17848333,112140.0,112130.0,0.2498944]
[1760177695114,1.17848333,112140.0,112130.0,0.24190248]
[1760177695312,1.17848333,112140.0,112130.0,0.34190243]
[1760177696100,1.17848333,112140.0,112130.0,0.52026682]
[1760177696101,1.00013484,112140.0,112130.0,0.52026682]
[1760177696417,1.17848333,112140.0,112130.0,0.52026682]
[1760177696619,1.00013484,112140.0,112130.0,0.52026682]
[1760177697463,1.00013484,112140.0,112130.0,0.58756178]
[1760177698600,1.17848333,112140.0,112130.0,0.58756178]
[1760177698744,1.17848333,112140.0,112130.0,0.98756178]
[1760177699303,1.17848333,112140.0,112130.0,0.58756178]
[1760177699859,1.17848333,112140.0,112130.0,0.74190243]
[1760177700800,0.97407905,112140.0,112130.0,0.74190243]
[1760177701316,0.97407905,112140.0,112130.0,0.34190243]
[1760177701672,1.01556905,112140.0,112130.0,0.27634243]
[1760177701890,1.01556905,112140.0,112130.0,0.07634799]
[1760177702093,1.06221905,112140.0,112130.0,0.00347799]
[1760177702293,1.08904971,112140.0,112130.0,0.00347799]
[1760177705167,1.04239971,112140.0,112130.0,0.04524799]
[1760177705306,1.04239971,112140.0,112130.0,0.00347799]
[1760177708516,1.00090971,112140.0,112130.0,0.14271799]
[1760177709571,1.04239971,112140.0,112130.0,0.07777799]
[1760177711685,1.04239971,112140.0,112130.0,0.00347799]
[1760177711894,1.04239971,112140.0,112130.0,0.04524799]
[1760177712764,1.04239971,112140.0,112130.0,0.00347799]
[1760177713020,1.08904971,112140.0,112130.0,0.00347799]